bitfinex/quotes_SOLUSD_20251013
["timestamp","ask_amount","ask_price","bid_price","bid_amount"]
[1760345097553,0.11104704,198.08,198.06,17.87137721]
[1760345097756,0.11104704,198.08,198.07,0.66]
[1760345098971,0.11104704,198.08,198.07,5.70872014]
[1760345101676,2.65813493,198.08,198.07,5.04872014]
[1760345104067,0.11104704,198.08,198.07,5.70872014]
[1760345104450,1e-08,198.08,198.07,96.98519535]
[1760345104651,1e-08,198.09,198.07,86.10872014]
[1760345104863,1e-08,198.09,198.08,0.66]
[1760345105859,0.09972228,198.11,198.08,0.66]
[1760345106053,1e-08,198.12,198.09,10.87647521]
[1760345106276,1e-08,198.12,198.1,0.66]
[1760345106457,0.09649671,198.14,198.13,20.8]
[1760345106655,0.09649671,198.14,198.13,21.46]
[1760345107154,0.09737679,198.15,198.13,101.86]
[1760345107155,1e-08,198.15,198.13,101.86]
[1760345107355,1e-08,198.15,198.14,0.66]
[1760345107566,1e-08,198.15,198.14,81.06]
[1760345107773,1e-08,198.16,198.15,10.87647521]
[1760345107964,1e-08,198.16,198.15,11.53647521]
[1760345108466,1e-08,198.16,198.15,16.58315701]
[1760345108869,1e-08,198.16,198.15,5.7066818]
[1760345109186,1e-08,198.16,198.15,5.0466818]
[1760345110066,1e-08,198.16,198.15,5.7066818]
[1760345110982,2.5470879,198.16,198.15,5.0466818]
[1760345111171,1e-08,198.16,198.15,5.0466818]
[1760345112491,3.2470879,198.16,198.1,17.66734357]
[1760345112663,2.54708789,198.13,198.1,17.66734357]
[1760345112862,2.54708789,198.14,198.1,17.66734357]
[1760345113163,3.2470879,198.16,198.11,0.66]
[1760345113577,1e-08,198.16,198.12,0.66]
[1760345113886,0.09381843,198.13,198.12,20.8]
[1760345114264,0.09381843,198.13,198.12,21.46]
[1760345114587,0.09381843,198.13,198.12,26.50744599]
[1760345116491,0.09381843,198.13,198.12,5.04744599]
[1760345118090,0.09381843,198.13,198.12,5.74744599]
[1760345119479,0.09381843,198.13,198.12,5.04744599]
[1760345119684,3.31090632,198.13,198.12,5.04744599]
[1760345119987,2.64090632,198.13,198.12,5.04744599]
[1760345120172,3.31090632,198.13,198.09,5.0482104]
[1760345120376,2.54708789,198.11,198.09,5.0482104]
[1760345120776,0.09381843,198.13,198.1,0.7]
[1760345121183,1e-08,198.13,198.11,10.87647521]
[1760345121488,1e-08,198.15,198.13,10.87647521]
[1760345121892,0.09234348,198.17,198.07,42.91363566]
[1760345121893,1e-08,198.16,198.15,10.87647521]
[1760345122196,1e-08,198.16,198.14,0.7]
[1760345122391,1e-08,198.16,198.15,0.7]
[1760345122701,1e-08,198.16,198.12,0.7]
[1760345122997,1e-08,198.16,198.13,17.66516932]
[1760345123493,1e-08,198.16,198.14,0.7]
[1760345123870,1e-08,198.16,198.15,0.7]
[1760345124493,1e-08,198.16,198.15,5.7466818]
[1760345124695,1e-08,198.16,198.15,5.0466818]
[1760345124991,3.2170879,198.16,198.11,5.04770077]
[1760345125289,2.54708789,198.14,198.11,5.04770077]
[1760345125473,2.54708789,198.14,198.11,17.6669527]
[1760345126597,2.54708789,198.14,198.11,12.61925193]
[1760345127102,2.54708789,198.15,198.12,0.7]
[1760345127393,2.54708789,198.15,198.11,12.61925193]
[1760345127394,1e-08,198.16,198.13,0.7]
[1760345127700,2.54708789,198.14,198.11,12.61925193]
[1760345128274,2.54708789,198.14,198.11,13.31925193]
[1760345128576,2.54708789,198.14,198.11,18.3669527]
[1760345128897,1e-08,198.16,198.12,0.7]
[1760345129390,2.5470879,198.16,198.13,0.7]
[1760345129597,1e-08,198.16,198.11,17.6669527]
[1760345129894,1e-08,198.16,198.14,0.7]
[1760345130288,1e-08,198.16,198.15,0.7]
[1760345130671,1e-08,198.16,198.15,5.7466818]
[1760345130867,0.09234348,198.17,198.15,5.7466818]
[1760345130868,1e-08,198.17,198.15,5.7466818]
[1760345131070,1e-08,198.17,198.16,0.7]
[1760345131889,2.54708789,198.26,198.17,31.67647521]
[1760345132070,0.1,198.27,198.18,0.7]
[1760345132791,0.1,198.27,198.2,31.67647521]
[1760345132996,0.1,198.27,198.22,10.87647521]
[1760345133495,0.1,198.27,198.23,0.7]
[1760345133796,0.09260787,198.26,198.24,0.7]
[1760345134101,0.19193843,198.27,198.24,21.5]
[1760345134277,0.19193843,198.27,198.25,0.7]
[1760345134790,0.19193843,198.27,198.26,5.74388177]
[1760345135577,1e-08,198.29,198.27,10.87647521]
[1760345135794,0.19250048,198.31,198.3,20.8]
[1760345135973,1e-08,198.31,198.3,20.8]
[1760345136176,1e-08,198.31,198.3,21.5]
[1760345136876,1e-08,198.31,198.3,26.54286434]
[1760345137788,1e-08,198.31,198.3,25.84286434]
[1760345138487,1e-08,198.31,198.3,26.54286434]
[1760345139178,6.35665649,198.31,198.3,5.04286434]
[1760345139902,1e-08,198.31,198.3,5.04286434]
[1760345140212,7.02665649,198.31,198.2,0.7]
[1760345140393,6.35665648,198.25,198.2,0.7]
[1760345140704,6.35665648,198.25,198.21,13.31234674]
[1760345141087,6.35665648,198.26,198.21,12.61234674]
[1760345141286,6.35665648,198.28,198.22,0.7]
[1760345141609,6.35665648,198.3,198.22,0.7]
[1760345141980,6.35665649,198.31,198.23,10.87647521]
[1760345142173,6.35665649,198.31,198.24,0.7]
[1760345142381,6.35665649,198.31,198.25,10.87647521]
[1760345142382,1e-08,198.31,198.25,10.87647521]
[1760345142604,1e-08,198.31,198.26,0.7]
[1760345142982,1e-08,198.31,198.28,17.65180551]
[1760345143374,9.46554457,198.31,198.28,17.65180551]
[1760345143601,9.46554456,198.29,198.28,5.043373]
[1760345143815,9.46554456,198.3,198.28,5.043373]
[1760345144195,1e-08,198.31,198.28,5.043373]
[1760345144501,9.46554456,198.3,198.28,5.043373]
[1760345145309,1e-08,198.31,198.27,5.04362737]
[1760345145310,9.46554456,198.29,198.27,5.04362737]
[1760345145481,10.15554456,198.28,198.27,5.04362737]
[1760345145679,10.15554456,198.28,198.24,12.61077946]
[1760345145881,9.46554456,198.25,198.22,5.0448996]
[1760345146084,9.46554456,198.24,198.22,5.0448996]
[1760345146284,9.46554456,198.27,198.23,0.67]
[1760345146485,9.46554456,198.28,198.23,0.67]
[1760345146793,10.18554456,198.28,198.22,17.65714861]
[1760345146994,9.46554456,198.28,198.22,18.31714861]
[1760345147391,9.46554456,198.27,198.22,18.31714861]
[1760345147892,9.46554456,198.27,198.23,0.66]
[1760345148284,9.46554456,198.29,198.24,0.66]
[1760345148497,1e-08,198.31,198.25,0.66]
[1760345149298,1e-08,198.31,198.26,17.65358619]
[1760345149613,9.46554456,198.29,198.26,17.65358619]
[1760345149997,9.46554456,198.29,198.26,18.31358619]
[1760345150796,1e-08,198.31,198.26,17.65358619]
[1760345151107,9.46554456,198.29,198.26,12.60970442]
[1760345151907,0.72000001,198.31,198.26,12.60970442]
[1760345152106,9.46554456,198.27,198.25,5.04413619]
[1760345152417,9.46554456,198.26,198.23,5.04442364]
[1760345152596,9.46554456,198.24,198.18,17.66013829]
[1760345152791,9.46554456,198.2,198.18,17.66013829]
[1760345152987,0.72,198.23,198.18,17.66013829]
[1760345152988,9.46554456,198.21,198.18,5.04591785]
[1760345153685,0.10601274,198.19,198.18,5.04591785]
[1760345154084,0.10601274,198.19,198.17,12.61517211]
[1760345154499,0.10601274,198.19,198.17,13.27517211]
[1760345155583,0.10601274,198.19,198.18,0.66]
[1760345156193,0.10601274,198.19,198.18,5.70591785]
[1760345156589,0.10601274,198.19,198.18,5.04591785]
[1760345158310,0.10601274,198.19,198.16,17.66227788]
[1760345158812,0.10601274,198.19,198.17,0.66]
[1760345159001,0.10601274,198.19,198.16,27.13849859]
[1760345159327,0.10601274,198.19,198.18,10.13622071]
[1760345159702,0.10601274,198.19,198.18,0.66]
[1760345160407,0.10601274,198.19,198.18,5.70591785]
[1760345160813,0.10601274,198.19,198.18,15.18213856]
[1760345161193,0.10065847,198.2,198.18,15.18213856]
[1760345161395,0.10065847,198.2,198.19,0.66]
[1760345161599,0.82065847,198.2,198.18,5.04591785]
[1760345161806,0.10065847,198.2,198.18,5.04591785]
[1760345162202,10.29687918,198.2,198.18,5.04591785]
[1760345162405,9.47622071,198.19,198.16,12.61585076]
[1760345162718,9.47622071,198.17,198.14,17.66427777]
[1760345163010,9.47622071,198.18,198.14,17.66427777]
[1760345163316,9.47622071,198.16,198.14,5.0469365]
[1760345164211,9.47622071,198.16,198.11,12.61885587]
[1760345164518,9.47622071,198.16,198.12,0.66]
[1760345164894,9.47622071,198.16,198.11,17.66655664]
[1760345165097,10.19622071,198.16,198.11,17.66655664]
[1760345165315,9.47622071,198.16,198.11,18.32655664]
[1760345165716,9.47622071,198.17,198.11,18.32655664]
[1760345166498,0.10065847,198.2,198.12,10.13622071]
[1760345166834,9.47622071,198.19,198.12,10.13622071]
[1760345167523,0.10065847,198.2,198.14,9.47622071]
[1760345167820,0.10065847,198.2,198.15,0.66]
[1760345168019,0.10065847,198.2,198.16,0.66]
[1760345168319,0.10065847,198.2,198.18,5.04591785]
[1760345168513,0.10065847,198.2,198.18,85.44591785]
[1760345168910,0.72,198.19,198.18,85.44591785]
[1760345169303,9.47622071,198.19,198.18,85.44591785]
[1760345169825,9.57687918,198.2,198.18,85.44591785]
[1760345170406,0.10065847,198.2,198.18,85.44591785]
[1760345170709,0.10065847,198.2,198.18,86.10591785]
[1760345171706,0.10065847,198.2,198.18,85.44591785]
[1760345173126,0.10065847,198.2,198.19,0.66]
[1760345173420,0.10065847,198.2,198.19,4.63406127]
[1760345173620,0.20981861,198.2,198.19,4.63406127]
[1760345174710,0.10916014,198.2,198.19,4.63406127]
[1760345174912,0.10916014,198.2,198.19,5.70566325]
[1760345175236,0.10407225,198.26,198.22,10.87647521]
[1760345175405,0.10407225,198.26,198.24,3.97406127]
[1760345175914,0.1,198.36,198.25,10.87647521]
[1760345175915,4.07406127,198.36,198.25,10.87647521]
[1760345176122,3.97406127,198.34,198.25,225.937297]
[1760345176333,3.97406127,198.34,198.26,4.63406127]
[1760345176505,3.97406127,198.34,198.26,219.03488306]
[1760345176818,0.1,198.36,198.22,0.71]
[1760345176819,0.78828524,198.29,198.22,0.71]
[1760345177214,0.09828524,198.29,198.24,3.97406127]
[1760345177412,0.09828524,198.29,198.25,4.68406127]
[1760345177810,0.09828524,198.29,198.27,3.97406127]
[1760345178015,0.09828524,198.29,198.26,21.51]
[1760345178228,0.09828524,198.29,198.26,0.71]
[1760345178730,0.09828524,198.29,198.21,42.88381008]
[1760345178731,3.97406127,198.27,198.21,17.65803944]
[1760345178928,3.97406127,198.26,198.21,98.05803944]
[1760345179526,3.97406127,198.24,198.21,98.76803944]
[1760345179824,3.97406127,198.24,198.21,98.05803944]
[1760345180037,3.97406127,198.25,198.21,98.76803944]
[1760345180321,0.69,198.28,198.21,98.76803944]
[1760345180322,3.97406127,198.26,198.21,98.76803944]
[1760345180538,0.69,198.28,198.21,98.05803944]
[1760345180745,3.97406127,198.26,198.21,98.05803944]
[1760345181108,3.97406127,198.25,198.21,98.05803944]
[1760345181710,0.69,198.27,198.21,98.05803944]
[1760345181909,3.97406127,198.25,198.21,98.05803944]
[1760345182321,3.97406127,198.24,198.21,98.05803944]
[1760345182509,3.97406127,198.25,198.21,98.76803944]
[1760345182710,20.89828524,198.29,198.21,98.76803944]
[1760345182711,3.97406127,198.26,198.22,0.71]
[1760345182916,20.8,198.28,198.21,98.05803944]
[1760345183118,3.97406127,198.25,198.22,0.71]
[1760345183709,3.97406127,198.24,198.21,98.05803944]
[1760345185729,3.97406127,198.23,198.21,98.05803944]
[1760345186812,3.97406127,198.26,198.22,0.71]
[1760345187128,3.97406127,198.26,198.21,98.05803944]
[1760345187129,3.97406127,198.25,198.21,98.05803944]
[1760345187330,3.97406127,198.24,198.21,98.05803944]
[1760345187533,3.97406127,198.24,198.21,98.76803944]
[1760345188121,3.97406127,198.26,198.22,0.71]
[1760345188631,3.97406127,198.25,198.22,0.71]
[1760345188831,3.97406127,198.25,198.23,5.0446451]
[1760345189536,0.09828524,198.29,198.24,0.71]
[1760345189718,4.07234651,198.29,198.24,0.71]
[1760345189918,3.97406127,198.28,198.24,0.71]
[1760345190120,0.09828524,198.29,198.24,0.71]
[1760345190121,3.97406127,198.27,198.24,0.71]
[1760345190318,3.97406127,198.27,198.24,81.11]
[1760345190632,3.97406127,198.25,198.23,85.4446451]
[1760345190817,3.97406127,198.24,198.22,5.0448996]
[1760345193028,3.97406127,198.24,198.2,17.65841648]
[1760345193229,3.97406127,198.22,198.2,17.65841648]
[1760345193409,3.97406127,198.23,198.2,17.65841648]
[1760345193609,0.10418613,198.21,198.2,17.65841648]
[1760345193909,0.10418613,198.21,198.12,5.04737861]
[1760345193910,4.7682474,198.21,198.12,5.04737861]
[1760345194110,3.97406127,198.2,198.14,0.71]
[1760345195315,0.10418613,198.21,198.18,3.97406127]
[1760345195519,0.10418613,198.21,198.19,0.71]
[1760345197415,0.10418613,198.21,198.2,5.04540867]
[1760345198536,0.10418613,198.21,198.18,17.66042301]
[1760345198716,0.10418613,198.21,198.18,18.37042301]
[1760345199649,1e-08,198.21,198.19,0.71]
[1760345199828,1e-08,198.21,198.2,20.8]
[1760345200210,1e-08,198.21,198.2,21.51]
[1760345200415,1e-08,198.21,198.2,5.75540867]
[1760345202233,1e-08,198.21,198.2,9.72946994]
[1760345202818,0.10139673,198.22,198.2,9.72946994]
[1760345202819,1e-08,198.22,198.2,9.72946994]
[1760345203040,1e-08,198.22,198.21,4.68406127]
[1760345203426,1e-08,198.22,198.2,7.58841738]
[1760345203627,1e-08,198.22,198.21,0.71]
[1760345204031,1e-08,198.22,198.21,5.75515412]
[1760345204434,1e-08,198.24,198.22,10.87647521]
[1760345204629,1e-08,198.27,198.22,11.58647521]
[1760345204938,1e-08,198.27,198.23,0.68]
[1760345205141,1e-08,198.27,198.24,10.87647521]
[1760345205541,1e-08,198.27,198.25,0.68]
[1760345205950,1e-08,198.27,198.21,43.56381008]
[1760345206153,1e-08,198.27,198.21,42.88381008]
[1760345206325,1e-08,198.27,198.22,0.68]
[1760345206729,1e-08,198.27,198.23,0.71]
[1760345207130,1e-08,198.27,198.24,0.71]
[1760345207736,1e-08,198.27,198.22,10.87647521]
[1760345207946,1e-08,198.27,198.23,0.71]
[1760345208134,1e-08,198.27,198.24,17.65536722]
[1760345208456,1e-08,198.27,198.24,18.36536722]
[1760345208636,1e-08,198.27,198.25,0.71]
[1760345209750,1e-08,198.27,198.26,0.71]
[1760345210126,1e-08,198.27,198.24,12.61097659]
[1760345210127,0.67000001,198.27,198.24,12.61097659]
[1760345210351,1e-08,198.27,198.24,12.61097659]
[1760345211645,3.21303591,198.26,198.23,5.0446451]
[1760345212740,2.54303591,198.26,198.23,5.0446451]
[1760345212942,2.54303591,198.24,198.23,5.0446451]
[1760345213530,2.54303591,198.24,198.21,12.61252578]
[1760345213730,2.63457827,198.24,198.21,12.61252578]
[1760345214861,0.09154236,198.24,198.22,0.71]
[1760345215052,0.09154236,198.24,198.21,12.61252578]
[1760345215357,0.09154236,198.24,198.21,13.32252578]
[1760345215865,0.09154236,198.24,198.21,18.3676799]
[1760345218347,0.09154236,198.24,198.21,17.6576799]
[1760345218530,2.63457827,198.24,198.21,17.6576799]
[1760345218842,2.63457827,198.24,198.21,18.3676799]
[1760345219734,2.63457827,198.24,198.21,13.32252578]
[1760345220147,2.63457827,198.24,198.21,12.61252578]
[1760345220343,2.63457827,198.24,198.19,5.75566325]
[1760345220745,0.09154236,198.24,198.19,17.65982138]
[1760345220943,0.09154236,198.24,198.2,0.71]
[1760345221339,0.09154236,198.24,198.19,17.65982138]
[1760345221544,0.09307509,198.27,198.22,10.87647521]
[1760345221751,0.09307509,198.27,198.23,17.65625787]
[1760345221946,0.09307509,198.27,198.23,39.16625787]
[1760345222162,0.09307509,198.27,198.26,20.8]
[1760345222538,0.09307509,198.27,198.26,21.51]
[1760345222744,0.09307509,198.27,198.26,0.71]
[1760345223660,1e-08,198.28,198.27,10.87647521]
[1760345223867,0.10514599,198.33,198.31,10.87647521]
[1760345224242,1e-08,198.33,198.32,0.71]
[1760345224485,1e-08,198.33,198.32,11.58647521]
[1760345224638,1e-08,198.33,198.27,0.71]
[1760345224839,2.54303591,198.32,198.27,0.71]
[1760345225547,2.54303591,198.32,198.28,5.043373]
[1760345226153,1e-08,198.33,198.27,0.71]
[1760345226343,0.67000001,198.33,198.27,0.71]
[1760345226544,2.54303591,198.32,198.27,0.71]
[1760345226740,1e-08,198.33,198.28,0.71]
[1760345226939,1e-08,198.33,198.29,0.71]
[1760345227255,2.54303592,198.33,198.26,0.71]
[1760345227654,2.54303591,198.31,198.27,5.04362737]
[1760345228044,0.67,198.31,198.27,5.04362737]
[1760345228248,2.54303591,198.3,198.27,5.04362737]
[1760345228472,0.67,198.29,198.26,5.04387859]
[1760345228961,0.67,198.29,198.23,0.71]
[1760345228962,3.21303591,198.28,198.2,0.71]
[1760345229751,24.01303591,198.28,198.21,5.04515412]
[1760345229947,3.21303591,198.28,198.21,5.75515412]
[1760345231362,3.21303591,198.28,198.21,0.71]
[1760345231953,0.67,198.28,198.21,0.71]
[1760345232259,2.54303591,198.27,198.22,5.0448996]
[1760345232446,1e-08,198.33,198.29,20.8]
[1760345232649,1e-08,198.33,198.3,11.58647521]
[1760345232966,1e-08,198.33,198.31,20.8]
[1760345233145,1e-08,198.33,198.32,10.87647521]
[1760345233342,1e-08,198.33,198.32,11.58647521]
[1760345233550,1e-08,198.36,198.35,31.67647521]
[1760345233778,0.11023183,198.39,198.36,10.87647521]
[1760345233973,0.11023183,198.39,198.37,0.71]
[1760345234144,0.11023183,198.39,198.33,20.8]
[1760345234482,0.11023183,198.39,198.36,0.71]
[1760345234664,0.11023183,198.39,198.34,10.87647521]
[1760345234853,0.11023183,198.39,198.35,0.71]
[1760345235168,0.11023183,198.39,198.36,0.71]
[1760345235351,0.11023183,198.39,198.38,5.04083072]
[1760345235766,0.11023183,198.39,198.38,5.75083072]
[1760345236151,0.11023183,198.39,198.38,5.04083072]
[1760345236665,0.11023183,198.39,198.38,5.75083072]
[1760345239158,0.11023183,198.39,198.38,5.04083072]
[1760345239360,0.11023183,198.39,198.38,5.75083072]
[1760345239889,0.11023183,198.39,198.38,5.04083072]
[1760345240073,0.11023183,198.39,198.34,10.87647521]
[1760345240074,2.65326774,198.39,198.35,5.04144321]
[1760345240382,0.11023183,198.39,198.35,5.75144321]
[1760345240688,0.11023183,198.39,198.35,18.35542606]
[1760345240886,2.65326774,198.39,198.35,18.35542606]
[1760345241458,2.65326774,198.39,198.33,10.87647521]
[1760345241760,2.65326774,198.39,198.35,0.71]
[1760345242162,2.54303591,198.38,198.35,0.71]
[1760345242559,2.54303591,198.38,198.36,5.04133897]
[1760345243680,0.11023183,198.39,198.32,10.87647521]
[1760345243681,3.20303591,198.37,198.32,5.04235578]
[1760345243878,2.54303591,198.34,198.32,5.04235578]
[1760345244263,0.66,198.37,198.32,5.04235578]
[1760345244464,0.66,198.36,198.32,5.04235578]
[1760345244864,5.15087076,198.39,198.31,5.04261005]
[1760345245068,0.66,198.35,198.31,5.04261005]
[1760345245654,2.54303591,198.32,198.31,5.04261005]
[1760345246054,2.54303591,198.32,198.29,17.65091532]
[1760345246260,2.54303591,198.32,198.29,18.36091532]
[1760345246960,0.66,198.36,198.3,0.71]
[1760345247167,2.54303591,198.33,198.3,0.71]
[1760345247566,2.54303591,198.32,198.3,0.71]
[1760345247980,2.54303591,198.33,198.31,5.04261005]
[1760345248156,2.54303591,198.34,198.31,5.04261005]
[1760345248567,2.54303591,198.34,198.31,5.75261005]
[1760345249170,2.54303591,198.34,198.31,5.04261005]
[1760345249395,2.54303591,198.34,198.3,5.04286434]
[1760345249581,2.54303591,198.34,198.3,5.75286434]
[1760345249783,2.54303591,198.33,198.3,5.75286434]
[1760345250168,2.54303591,198.33,198.3,5.04286434]
[1760345250385,2.54303591,198.33,198.3,5.75286434]
[1760345250789,2.54303591,198.33,198.3,0.71]
[1760345251362,0.66,198.37,198.29,12.60779666]
[1760345251567,0.11023183,198.39,198.32,10.87647521]
[1760345251770,2.54303591,198.38,198.32,10.87647521]
[1760345251967,2.54303591,198.37,198.33,0.71]
[1760345252172,2.54303591,198.37,198.34,0.71]
[1760345252875,2.54303591,198.37,198.35,5.04159314]
[1760345253679,0.09783346,198.36,198.35,5.04159314]
[1760345253988,0.09783346,198.36,198.35,5.75159314]
[1760345257866,3.30086937,198.36,198.23,25.22322554]
[1760345258069,2.54303591,198.31,198.28,0.71]
[1760345258301,2.54303591,198.31,198.29,0.71]
[1760345258469,2.64086937,198.36,198.31,5.04261005]
[1760345258678,2.64086937,198.36,198.32,11.58647521]
[1760345258679,0.09783346,198.36,198.32,11.58647521]
[1760345258894,0.09783346,198.36,198.33,0.71]
[1760345259199,0.09783346,198.36,198.34,0.71]
[1760345260406,0.09783346,198.36,198.35,5.04159314]
[1760345261726,0.09783346,198.36,198.33,18.35706923]
[1760345261894,0.09783346,198.36,198.34,0.71]
[1760345262096,0.09783346,198.36,198.35,0.71]
[1760345262296,0.09783346,198.36,198.34,0.71]
[1760345262915,3.20303591,198.35,198.3,12.6066221]
[1760345263119,0.66,198.34,198.28,5.043373]
[1760345263421,0.75783346,198.36,198.29,0.71]
[1760345263718,2.64086937,198.36,198.3,17.6500252]
[1760345263919,2.64086937,198.36,198.31,0.71]
[1760345264089,2.54303591,198.35,198.32,0.71]
[1760345265018,0.09783346,198.36,198.33,5.04210154]
[1760345265189,0.09783346,198.36,198.33,5.73210154]
[1760345265395,4.06782535,198.36,198.33,5.73210154]
[1760345265794,4.06782535,198.36,198.33,18.3373554]
[1760345267410,0.09783346,198.36,198.33,18.3373554]
[1760345267603,4.06782535,198.36,198.33,18.3373554]
[1760345268121,3.96999189,198.35,198.33,18.3373554]
[1760345269100,3.96999189,198.34,198.33,17.6473554]
[1760345270107,3.96999189,198.34,198.33,12.60525386]
[1760345270307,3.96999189,198.34,198.33,13.31525386]
[1760345270501,3.96999189,198.35,198.33,13.31525386]
[1760345270716,4.06782535,198.36,198.34,0.71]
[1760345271321,0.09783346,198.36,198.35,0.71]
[1760345272227,0.09783346,198.36,198.35,5.75159314]
[1760345273001,0.09783346,198.36,198.35,5.04159314]
[1760345273002,4.06782535,198.36,198.35,5.04159314]
[1760345273418,0.09783346,198.36,198.35,5.04159314]
[1760345273799,4.17789072,198.36,198.35,5.04159314]
[1760345274004,4.17789072,198.36,198.34,5.04184733]
[1760345274614,4.08005726,198.36,198.34,5.04184733]
[1760345274813,4.08005726,198.36,198.34,5.75184733]
[1760345275025,3.96999189,198.35,198.34,5.04184733]
[1760345275905,4.68999189,198.35,198.27,12.60853979]
[1760345276214,3.96999189,198.28,198.27,17.65216716]
[1760345276609,3.96999189,198.28,198.27,5.04362737]
[1760345277435,0.72,198.3,198.27,5.04362737]
[1760345277728,3.96999189,198.28,198.25,5.04413619]
[1760345277932,3.96999189,198.27,198.25,5.04413619]
[1760345278319,3.96999189,198.28,198.25,17.65447666]
[1760345279629,3.96999189,198.27,198.25,17.65447666]
[1760345279831,3.96999189,198.26,198.25,5.04413619]
[1760345280910,3.96999189,198.26,198.23,5.0446451]
[1760345281107,0.72,198.31,198.24,0.71]
[1760345281324,3.96999189,198.27,198.24,0.71]
[1760345281830,20.8,198.34,198.25,0.71]
[1760345282012,3.96999189,198.31,198.25,0.71]
[1760345282211,3.96999189,198.3,198.25,0.71]
[1760345282530,3.96999189,198.3,198.26,0.71]
[1760345282706,3.96999189,198.27,198.23,17.65625787]
[1760345282912,3.96999189,198.28,198.24,0.71]
[1760345283124,3.96999189,198.27,198.25,0.71]
[1760345283330,3.96999189,198.26,198.22,0.71]
[1760345283627,3.96999189,198.23,198.21,5.04515412]
[1760345283831,3.96999189,198.22,198.21,5.04515412]
[1760345284013,3.96999189,198.23,198.21,5.04515412]
[1760345284215,0.72,198.29,198.22,0.71]
[1760345284415,3.96999189,198.27,198.22,0.71]
[1760345284816,3.96999189,198.26,198.24,5.04439063]
[1760345285123,3.96999189,198.25,198.24,5.04439063]
[1760345285723,0.72,198.27,198.24,5.04439063]
[1760345285924,3.96999189,198.25,198.24,5.04439063]
[1760345286432,3.96999189,198.26,198.24,5.04439063]
[1760345286948,3.96999189,198.28,198.26,5.04388177]
[1760345287239,12.70414455,198.37,198.27,0.71]
[1760345287240,3.96999189,198.31,198.27,0.71]
[1760345287626,20.8,198.34,198.28,0.71]
[1760345287627,3.96999189,198.3,198.28,0.71]
[1760345287825,3.96999189,198.29,198.26,85.44388177]
[1760345288033,3.96999189,198.27,198.26,85.44388177]
[1760345288339,3.96999189,198.27,198.26,5.04388177]
[1760345289031,3.96999189,198.27,198.24,5.04439063]
[1760345289234,3.96999189,198.25,198.24,5.04439063]
[1760345289623,3.96999189,198.26,198.24,5.75439063]
[1760345290333,3.96999189,198.25,198.24,5.04439063]
[1760345290521,3.96999189,198.26,198.24,5.04439063]
[1760345291529,3.96999189,198.27,198.23,17.65573212]
[1760345291729,3.96999189,198.27,198.23,18.36573212]
[1760345291927,5.04201955,198.34,198.23,17.65573212]
[1760345292128,3.96999189,198.29,198.24,0.71]
[1760345292326,3.96999189,198.3,198.24,81.11]
[1760345292533,3.96999189,198.29,198.25,0.71]
[1760345293426,3.96999189,198.29,198.26,5.04388177]
[1760345293623,3.96999189,198.27,198.26,5.04388177]
[1760345293828,4.07977897,198.27,198.26,5.04388177]
[1760345295431,0.10978708,198.27,198.26,5.75388177]
[1760345296532,0.10978708,198.27,198.26,86.15388177]
[1760345298025,4.07977897,198.27,198.26,5.04388177]
[1760345298334,4.74977897,198.27,198.26,5.04388177]
[1760345298526,4.74977897,198.27,198.22,12.6116867]
[1760345298747,0.67,198.26,198.23,5.0446451]
[1760345298933,0.67,198.25,198.19,17.65933452]
[1760345299132,0.67,198.24,198.19,17.65933452]
[1760345299341,0.67,198.23,198.19,17.65933452]
[1760345299843,3.96999189,198.22,198.19,12.61367127]
[1760345300442,3.96999189,198.23,198.19,13.32367127]
[1760345300630,3.96999189,198.23,198.2,0.71]
[1760345301153,3.96999189,198.23,198.19,12.61367127]
[1760345301358,3.96999189,198.22,198.19,13.32367127]
[1760345301873,3.96999189,198.2,198.18,5.04591785]
[1760345302150,4.63999189,198.19,198.15,5.24651614]
[1760345302328,3.96999189,198.17,198.15,5.24651614]
[1760345302941,3.96999189,198.16,198.15,5.24651614]
[1760345303449,4.63999189,198.16,198.15,0.2]
[1760345303635,3.96999189,198.16,198.15,0.2]
[1760345303837,4.63999189,198.16,198.15,0.2]
[1760345304234,3.96999189,198.16,198.15,5.2466818]
[1760345304649,3.96999189,198.16,198.15,0.2]
[1760345304837,4.63999189,198.16,198.15,0.2]
[1760345306035,3.96999189,198.16,198.15,0.2]
[1760345306635,3.96999189,198.18,198.15,5.9566818]
[1760345306943,3.96999189,198.16,198.15,0.2]